bitfinex/quotes_BTCUSD_20240918
["timestamp","ask_amount","ask_price","bid_price","bid_amount"]
[1726672600785,1.30790311,59667.0,59666.0,0.00011]
[1726672601025,1.29390311,59667.0,59666.0,0.00011]
[1726672601215,0.95871011,59667.0,59666.0,0.00011]
[1726672601442,0.80344914,59667.0,59666.0,0.00011]
[1726672601662,0.82974546,59667.0,59666.0,0.00011]
[1726672602320,1.16493846,59667.0,59666.0,0.00011]
[1726672602541,1.17893846,59667.0,59666.0,0.00011]
[1726672602762,0.84374546,59667.0,59666.0,0.00011]
[1726672602969,0.82974546,59667.0,59666.0,0.00011]
[1726672603883,0.49455246,59667.0,59666.0,0.00011]
[1726672604108,0.30066014,59667.0,59666.0,0.00011]
[1726672604330,0.80344914,59667.0,59666.0,0.00011]
[1726672604773,0.46825614,59667.0,59666.0,0.00011]
[1726672605021,0.20066014,59667.0,59666.0,0.00011]
[1726672605239,0.38225614,59667.0,59666.0,0.00011]
[1726672605464,0.71744914,59667.0,59666.0,0.00011]
[1726672606407,0.35925614,59667.0,59666.0,0.00011]
[1726672606656,0.17766014,59667.0,59666.0,0.00011]
[1726672607164,0.35425614,59667.0,59666.0,0.00011]
[1726672607424,1.01564214,59667.0,59666.0,0.00011]
[1726672607920,1.02164214,59667.0,59666.0,0.00011]
[1726672608175,1.37983514,59667.0,59666.0,0.00011]
[1726672608919,1.3897002,59667.0,59666.0,0.00011]
[1726672610436,1.3837002,59667.0,59666.0,0.00011]
[1726672610909,1.04664214,59667.0,59666.0,0.00011]
[1726672611120,1.07293807,59667.0,59666.0,0.00011]
[1726672611787,1.06493807,59667.0,59666.0,0.00011]
[1726672612011,1.07193807,59667.0,59666.0,0.00011]
[1726672613964,1.06493807,59667.0,59666.0,0.00011]
[1726672615909,1.07093807,59667.0,59666.0,0.00011]
[1726672616120,1.07093807,59667.0,59666.0,0.000931]
[1726672616578,1.40613107,59667.0,59666.0,0.000931]
[1726672617910,1.56139204,59667.0,59666.0,0.000931]
[1726672622193,1.89658504,59667.0,59666.0,0.000931]
[1726672622413,1.99858504,59667.0,59666.0,0.000931]
[1726672622873,2.00228911,59667.0,59666.0,0.000931]
[1726672623610,1.99628911,59667.0,59666.0,0.000931]
[1726672623836,1.273354,59658.0,59657.0,0.0038916]
[1726672624056,1.94991264,59658.0,59657.0,0.0038916]
[1726672624301,1.99623352,59658.0,59657.0,0.0038916]
[1726672624764,1.99423352,59658.0,59657.0,0.0038916]
[1726672624984,1.96423352,59658.0,59657.0,0.0038916]
[1726672625231,1.99623352,59658.0,59657.0,0.0038916]
[1726672626790,2.22996756,59658.0,59657.0,0.0038916]
[1726672627078,2.09303352,59658.0,59657.0,0.0038916]
[1726672627306,1.99423352,59658.0,59657.0,0.0038916]
[1726672627747,1.9931621,59658.0,59657.0,0.0038916]
[1726672628385,1.9951621,59658.0,59657.0,0.0038916]
[1726672628606,2.0091621,59658.0,59657.0,0.0047136]
[1726672629034,2.0071621,59658.0,59657.0,0.0047136]
[1726672629683,2.4044061,59658.0,59657.0,0.0047136]
[1726672630355,1.35192997,59642.0,59641.0,0.003176]
[1726672630577,1.51498364,59642.0,59641.0,0.003176]
[1726672630823,1.52908591,59642.0,59641.0,0.003176]
[1726672632382,1.53508591,59642.0,59641.0,0.003176]
[1726672633287,1.63508591,59642.0,59641.0,0.003176]
[1726672633517,1.63708591,59642.0,59641.0,0.003176]
[1726672633738,1.66708591,59642.0,59641.0,0.003176]
[1726672633968,2.00241991,59642.0,59641.0,0.003176]
[1726672634634,1.67696633,59642.0,59641.0,0.003176]
[1726672634853,1.64496633,59642.0,59641.0,0.003176]
[1726672635536,1.63896633,59642.0,59641.0,0.003176]
[1726672635762,0.69415694,59642.0,59641.0,0.003176]
[1726672636006,0.68015694,59642.0,59641.0,0.003176]
[1726672636228,0.34482294,59642.0,59641.0,0.003176]
[1726672636444,0.35882294,59642.0,59641.0,0.003176]
[1726672636658,0.69415694,59642.0,59641.0,0.003176]
[1726672636906,0.17715594,59642.0,59641.0,0.003176]
[1726672637130,0.19115594,59642.0,59641.0,0.248345]
[1726672637384,0.19115594,59642.0,59641.0,0.919023]
[1726672637604,0.19115594,59642.0,59641.0,0.583684]
[1726672638069,0.17705367,59642.0,59641.0,0.583684]
[1726672638277,0.17705367,59642.0,59641.0,0.248345]
[1726672638714,0.19100528,59642.0,59641.0,0.248345]
[1726672638926,0.19100528,59642.0,59641.0,0.919023]
[1726672639154,0.17700528,59642.0,59641.0,0.583684]
[1726672639381,0.16305367,59642.0,59641.0,0.583684]
[1726672639603,0.16705367,59642.0,59641.0,0.583684]
[1726672639839,0.18100528,59642.0,59641.0,0.583684]
[1726672640288,0.17700528,59642.0,59641.0,0.583684]
[1726672640502,0.16305367,59642.0,59641.0,0.919023]
[1726672640754,0.16505367,59642.0,59641.0,0.003176]
[1726672640977,0.69105467,59642.0,59641.0,0.003176]
[1726672641227,1.04040227,59642.0,59641.0,0.003176]
[1726672641447,1.0667086,59642.0,59641.0,0.003176]
[1726672642108,1.0667086,59642.0,59641.0,0.003998]
[1726672642109,1.4020426,59642.0,59641.0,0.003998]
[1726672642333,1.5020426,59642.0,59641.0,0.003998]
[1726672643050,1.5000426,59642.0,59641.0,0.003998]
[1726672643295,1.80907027,59642.0,59641.0,0.003998]
[1726672643518,2.04494673,59642.0,59641.0,0.003998]
[1726672643747,2.03794673,59642.0,59641.0,0.003998]
[1726672643971,2.37328073,59642.0,59641.0,0.003998]
[1726672644199,2.24740427,59642.0,59641.0,0.003998]
[1726672644421,2.23640427,59642.0,59641.0,0.003998]
[1726672644877,2.25040427,59642.0,59641.0,0.003998]
[1726672645537,1.91507027,59642.0,59641.0,0.003998]
[1726672645978,2.25040427,59642.0,59641.0,0.003998]
[1726672646420,1.91507027,59642.0,59641.0,0.003998]
[1726672646852,1.90107027,59642.0,59641.0,0.003998]
[1726672647063,1.91507027,59642.0,59641.0,0.003998]
[1726672647492,1.90107027,59642.0,59641.0,0.003998]
[1726672647747,2.04215957,59642.0,59641.0,0.003998]
[1726672647962,1.91507027,59642.0,59641.0,0.003998]
[1726672648644,2.07033124,59642.0,59641.0,0.003998]
[1726672648862,2.40566524,59642.0,59641.0,0.003998]
[1726672649104,2.07033124,59642.0,59641.0,0.003998]
[1726672649541,2.40566524,59642.0,59641.0,0.003998]
[1726672649760,2.07033124,59642.0,59641.0,0.003998]
[1726672650235,2.06833124,59642.0,59641.0,0.003998]
[1726672650429,2.05633124,59642.0,59641.0,0.003998]
[1726672650852,2.07033124,59642.0,59641.0,0.003998]
[1726672651739,2.05433124,59642.0,59641.0,0.003998]
[1726672652168,2.05633124,59642.0,59641.0,0.003998]
[1726672653265,2.05433124,59642.0,59641.0,0.003998]
[1726672653705,2.05633124,59642.0,59641.0,0.003998]
[1726672653917,2.07033124,59642.0,59641.0,0.003998]
[1726672654795,2.05633124,59642.0,59641.0,0.003998]
[1726672655008,2.05433124,59642.0,59641.0,0.003998]
[1726672655231,1.36473627,59642.0,59641.0,0.003998]
[1726672655502,1.35073627,59642.0,59641.0,0.003998]
[1726672655747,1.38073627,59642.0,59641.0,0.003998]
[1726672655961,1.39473627,59642.0,59641.0,0.003998]
[1726672656397,1.36473627,59642.0,59641.0,0.003998]
[1726672656620,1.15240227,59642.0,59641.0,0.003998]
[1726672657300,1.48773627,59642.0,59641.0,0.003998]
[1726672657719,1.51773627,59642.0,59641.0,0.003998]
[1726672657935,1.48773627,59642.0,59641.0,0.003998]
[1726672658166,1.51773627,59642.0,59641.0,0.003998]
[1726672659259,1.91307027,59642.0,59641.0,0.003998]
[1726672659473,1.57773627,59642.0,59641.0,0.003998]
[1726672659892,1.57973627,59642.0,59641.0,0.003998]
[1726672660119,1.60604513,59642.0,59641.0,0.003998]
[1726672660552,1.94137913,59642.0,59641.0,0.003998]
[1726672661203,1.60604513,59642.0,59641.0,0.003998]
[1726672661654,1.94137913,59642.0,59641.0,0.0077306]
[1726672664221,1.60404513,59642.0,59641.0,0.0077306]
[1726672665322,1.54404513,59642.0,59641.0,0.0077306]
[1726672665542,1.15571113,59642.0,59641.0,0.0910306]
[1726672665764,1.49104513,59642.0,59641.0,0.0910306]
[1726672665975,1.12940227,59642.0,59641.0,0.0910306]
[1726672666416,0.19106727,59642.0,59641.0,0.0910306]
[1726672666628,0.69406827,59642.0,59641.0,0.0910306]
[1726672667942,1.02940227,59642.0,59641.0,0.0910306]
[1726672668152,1.05240227,59642.0,59641.0,0.0910306]
[1726672668427,1.03840227,59642.0,59641.0,0.0910306]
[1726672668640,1.04440227,59642.0,59641.0,0.0910306]
[1726672669086,0.70906827,59642.0,59641.0,0.0910306]
[1726672669314,0.37373427,59642.0,59641.0,0.1895306]
[1726672669530,0.18306727,59642.0,59641.0,0.1895306]
[1726672670300,0.18306727,59642.0,59641.0,0.3571996]
[1726672670547,0.18306727,59642.0,59641.0,0.1895306]
[1726672670780,0.16905367,59642.0,59641.0,0.3571996]
[1726672670992,0.21109763,59642.0,59641.0,0.3571996]
[1726672671464,0.21109763,59642.0,59641.0,0.1895306]
[1726672673024,0.21109763,59642.0,59641.0,0.3571996]
[1726672673488,0.19535826,59642.0,59641.0,0.3571996]
[1726672673709,0.04804396,59642.0,59641.0,1.51847757]
[1726672673926,0.03230459,59642.0,59641.0,1.18313857]
[1726672674150,0.006,59642.0,59641.0,1.18313857]
[1726672674584,0.006,59642.0,59641.0,1.0278776]
[1726672674866,0.006,59642.0,59641.0,0.6925386]
[1726672675099,0.006,59642.0,59641.0,1.0278776]
[1726672675561,0.006,59642.0,59641.0,1.18313857]
[1726672676734,0.006,59642.0,59641.0,1.0278776]
[1726672681346,0.006,59642.0,59641.0,1.18313857]
[1726672683021,0.467644,59657.0,59656.0,0.261527]
[1726672683259,0.16469767,59657.0,59656.0,0.339527]
[1726672683487,0.18053986,59657.0,59656.0,0.339527]
[1726672684398,0.18053986,59657.0,59656.0,0.674782]
[1726672684830,0.16469767,59657.0,59656.0,0.339527]
[1726672685087,0.16469767,59657.0,59656.0,0.1719]
[1726672685311,0.34826398,59657.0,59656.0,0.1719]
[1726672685532,0.68351298,59657.0,59656.0,0.1719]
[1726672686016,0.18063998,59657.0,59656.0,0.674782]
[1726672686207,0.18063998,59657.0,59656.0,0.339527]
[1726672686460,0.16469767,59657.0,59656.0,0.339527]
[1726672686675,0.18063998,59657.0,59656.0,0.339527]
[1726672687136,0.18063998,59657.0,59656.0,0.1719]
[1726672687353,0.18463998,59657.0,59656.0,0.674782]
[1726672687619,0.18463998,59657.0,59656.0,0.339527]
[1726672687830,0.16869767,59657.0,59656.0,0.674782]
[1726672688043,0.18463998,59657.0,59656.0,0.674782]
[1726672688725,0.16869767,59657.0,59656.0,0.674782]
[1726672689371,0.18463998,59657.0,59656.0,0.674782]
[1726672689588,0.047885,59657.0,59656.0,0.674782]
[1726672689829,0.03194269,59657.0,59656.0,0.674782]
[1726672690004,0.03194269,59657.0,59656.0,0.339527]
[1726672690473,0.005644,59657.0,59656.0,0.339527]
[1726672690699,0.02158631,59657.0,59656.0,0.339527]
[1726672690913,0.005644,59657.0,59656.0,0.339527]
[1726672691126,0.02158631,59657.0,59656.0,0.674782]
[1726672691339,0.005644,59657.0,59656.0,0.674782]
[1726672691990,0.02158631,59657.0,59656.0,0.674782]
[1726672692203,0.005644,59657.0,59656.0,0.674782]
[1726672692420,0.02158631,59657.0,59656.0,0.674782]
[1726672692640,0.005644,59657.0,59656.0,0.674782]
[1726672692854,0.02158631,59657.0,59656.0,0.674782]
[1726672693067,0.005644,59657.0,59656.0,0.674782]
[1726672693292,0.02158631,59657.0,59656.0,0.674782]
[1726672693549,0.16869767,59657.0,59656.0,0.1719]
[1726672693849,0.37856279,59657.0,59656.0,0.1719]
[1726672694158,0.21093879,59657.0,59656.0,0.1719]
[1726672694370,0.18463998,59657.0,59656.0,0.1719]
[1726672694594,0.18463998,59657.0,59656.0,0.339527]
[1726672694811,0.02158631,59657.0,59656.0,1.010037]
[1726672695241,0.005644,59657.0,59656.0,1.010037]
[1726672696143,0.005644,59657.0,59656.0,0.674782]
[1726672696376,0.02158631,59657.0,59656.0,0.674782]
[1726672696597,0.005644,59657.0,59656.0,0.674782]
[1726672697285,0.001644,59673.0,59671.0,0.15526097]
[1726672697520,0.001544,59673.0,59671.0,0.32556097]
[1726672698237,0.001544,59673.0,59672.0,0.60439852]
[1726672698478,0.001544,59673.0,59672.0,0.936212]
[1726672698703,0.001544,59673.0,59672.0,1.271377]
[1726672699609,0.001544,59673.0,59672.0,0.936212]
[1726672699844,0.001544,59673.0,59672.0,0.0983]
[1726672700083,0.335171,59671.0,59664.0,0.0991]
[1726672700356,0.16305367,59670.0,59664.0,0.0991]
[1726672700585,0.17633591,59670.0,59664.0,0.0991]
[1726672700808,0.17633591,59670.0,59666.0,0.167598]
[1726672701046,0.17633591,59670.0,59664.0,0.0991]
[1726672701047,0.01328224,59670.0,59669.0,0.502773]
[1726672701287,0.01492224,59670.0,59669.0,0.502773]
[1726672701563,0.00164,59670.0,59669.0,0.502773]
[1726672702228,0.00164,59670.0,59669.0,0.837955]
[1726672702443,0.00164,59670.0,59669.0,0.99321597]
[1726672702930,0.00164,59670.0,59669.0,0.99421597]
[1726672703149,0.00164,59670.0,59669.0,1.32839797]
[1726672703627,0.00164,59670.0,59669.0,0.839955]
[1726672703844,0.00164,59670.0,59669.0,0.504773]
[1726672704127,0.00164,59670.0,59669.0,0.002]
[1726672704865,0.01488726,59670.0,59669.0,0.002]
[1726672705084,0.01488726,59670.0,59669.0,0.167591]
[1726672705304,0.01588726,59670.0,59669.0,0.174591]
[1726672705757,0.01588726,59670.0,59669.0,0.167591]
[1726672705758,0.01488726,59670.0,59669.0,0.167591]
[1726672705980,0.01488726,59670.0,59664.0,0.0991]
[1726672705981,0.16469367,59670.0,59664.0,0.0991]
[1726672706210,0.167597,59667.0,59662.0,0.0778]
[1726672706436,0.33065067,59667.0,59663.0,0.167606]
[1726672706693,0.16305367,59667.0,59664.0,0.167603]
[1726672706913,0.01324726,59666.0,59665.0,0.335204]
[1726672707137,0.01324726,59666.0,59665.0,0.502806]
[1726672708279,0.16305367,59667.0,59666.0,0.502798]
[1726672709614,0.16305367,59667.0,59666.0,0.507798]
[1726672710074,0.00164,59670.0,59666.0,0.507798]
[1726672710075,0.00164,59670.0,59669.0,0.167591]
[1726672710311,0.16469367,59670.0,59669.0,0.502773]
[1726672710539,0.19098298,59670.0,59669.0,0.502773]
[1726672710764,0.02792931,59670.0,59669.0,0.837955]
[1726672711656,0.02792931,59670.0,59669.0,0.502773]
[1726672711836,0.02792931,59670.0,59666.0,0.340194]
[1726672711837,0.167592,59669.0,59666.0,0.005]
[1726672712050,0.02792931,59670.0,59664.0,0.335209]
[1726672712257,0.16305367,59669.0,59662.0,0.0778]
[1726672712432,0.16305367,59669.0,59663.0,0.167607]
[1726672712629,0.335199,59666.0,59662.0,0.0778]
[1726672712832,0.16305367,59669.0,59665.0,0.167601]
[1726672713028,0.16305367,59669.0,59666.0,0.167597]
[1726672713462,0.02629204,59668.0,59665.0,0.1676]
[1726672713776,0.16305367,59667.0,59665.0,0.1676]
[1726672714552,0.16305367,59667.0,59666.0,0.167599]
[1726672715191,0.16305367,59667.0,59664.0,0.00082]
[1726672715399,0.16305367,59667.0,59666.0,0.002]
[1726672715616,0.16305367,59667.0,59666.0,0.169599]
[1726672715823,0.16305367,59667.0,59666.0,0.502798]
[1726672716046,0.00164,59670.0,59664.0,0.336027]
[1726672716047,0.00164,59670.0,59669.0,0.502773]
[1726672716252,0.16469367,59670.0,59666.0,0.004]
[1726672716460,0.16469367,59670.0,59669.0,0.167591]
[1726672716668,0.00164,59670.0,59669.0,0.597173]
[1726672716958,0.00164,59670.0,59669.0,0.932355]
[1726672717177,0.00164,59670.0,59669.0,1.267537]
[1726672717384,0.00164,59670.0,59669.0,1.349437]
[1726672719113,0.00264,59670.0,59669.0,1.356437]
[1726672721604,0.00264,59670.0,59669.0,1.691619]
[1726672721816,0.00264,59670.0,59669.0,1.356437]
[1726672724172,0.00264,59670.0,59669.0,0.686073]
[1726672725924,0.00264,59670.0,59669.0,1.021255]
[1726672726792,0.00264,59670.0,59669.0,0.686073]
[1726672728462,0.00264,59670.0,59669.0,1.021255]
[1726672731139,0.00264,59670.0,59669.0,1.356437]
[1726672731366,0.00264,59670.0,59669.0,1.021255]
[1726672731592,0.00264,59670.0,59669.0,0.686073]
[1726672732281,0.00264,59670.0,59669.0,1.021255]
[1726672734604,0.00264,59670.0,59669.0,1.356437]
[1726672735811,0.00264,59670.0,59669.0,1.74169303]
[1726672736028,0.00264,59670.0,59669.0,1.74369303]
[1726672736256,0.00264,59670.0,59669.0,1.693619]
[1726672736474,0.001544,59673.0,59672.0,1.508242]
[1726672736705,0.001544,59673.0,59672.0,1.42103797]
[1726672738874,0.002544,59673.0,59672.0,1.43503797]
[1726672739101,0.002544,59673.0,59672.0,1.42103797]
[1726672739102,0.001544,59673.0,59672.0,1.42103797]
[1726672739318,0.001544,59673.0,59672.0,1.43503797]
[1726672740766,0.001544,59673.0,59672.0,0.516747]
[1726672741209,0.001544,59673.0,59672.0,0.851912]
[1726672741616,0.001544,59673.0,59672.0,0.837912]
[1726672742038,0.002544,59673.0,59672.0,0.512747]
[1726672742239,0.02883033,59673.0,59672.0,0.847912]
[1726672742445,0.02883033,59673.0,59672.0,0.01]
[1726672742649,0.694622,59673.0,59672.0,0.01]
[1726672742862,0.70791916,59673.0,59672.0,0.01]
[1726672744305,0.502771,59670.0,59665.0,0.1676]
[1726672744506,0.33064567,59669.0,59665.0,0.1676]
[1726672744921,0.01329716,59668.0,59665.0,0.1676]
[1726672745193,0.18089216,59668.0,59664.0,0.00082]
[1726672745605,0.18089216,59668.0,59664.0,0.168422]
[1726672745976,0.01329716,59668.0,59666.0,0.167599]
[1726672746388,0.18089216,59668.0,59664.0,0.168424]
[1726672747005,0.18089216,59668.0,59665.0,0.167601]
[1726672747214,0.01329716,59668.0,59665.0,0.167601]
[1726672747424,0.03958774,59668.0,59665.0,0.167601]
[1726672748526,0.03958774,59668.0,59666.0,0.167599]
[1726672750500,0.03958774,59668.0,59667.0,0.167596]
[1726672751360,0.03958774,59668.0,59666.0,0.002]
[1726672751570,0.03958774,59668.0,59667.0,0.167596]
[1726672751784,0.03958774,59668.0,59667.0,0.837982]
[1726672752009,0.03958774,59668.0,59667.0,1.272075]
[1726672752232,0.03958774,59668.0,59667.0,1.689668]
[1726672752233,0.01329716,59668.0,59667.0,1.689668]
[1726672752443,0.001544,59673.0,59672.0,1.173077]
[1726672752659,0.001544,59673.0,59672.0,1.76240297]
[1726672753096,0.001544,59673.0,59672.0,1.81253956]
[1726672753309,0.001544,59673.0,59672.0,1.81253538]
[1726672753547,0.001544,59673.0,59672.0,1.76240297]
[1726672753762,0.001454,59673.0,59672.0,1.83960159]
[1726672753982,0.001454,59673.0,59672.0,1.83760159]
[1726672754204,0.001454,59673.0,59672.0,1.76240297]
[1726672754410,0.001454,59673.0,59672.0,1.8626678]
[1726672754838,0.001454,59673.0,59672.0,2.39088647]
[1726672755050,0.001354,59673.0,59672.0,2.99918564]
[1726672755314,0.001354,59673.0,59672.0,2.03705664]
[1726672755525,0.001354,59673.0,59672.0,2.04688181]
[1726672755732,0.001354,59673.0,59672.0,2.06088181]
[1726672756360,1.001354,59673.0,59672.0,2.06088181]
[1726672756581,1.001254,59673.0,59672.0,2.64557281]
[1726672756795,1.01446297,59673.0,59672.0,2.74757281]
[1726672757015,1.01446297,59673.0,59672.0,3.08273781]
[1726672757224,1.01446297,59673.0,59672.0,3.23313506]
[1726672757438,1.001254,59673.0,59672.0,3.08273781]
[1726672757644,0.16892874,59673.0,59672.0,3.14273781]
[1726672757904,0.16882874,59673.0,59672.0,3.30151616]
[1726672758122,0.0001188,59686.0,59685.0,1.507914]
[1726672758348,0.0001188,59686.0,59685.0,1.66317497]
[1726672760074,0.0001188,59686.0,59685.0,1.33820226]
[1726672760284,0.0001188,59686.0,59685.0,1.32808297]
[1726672760956,0.0017588,59686.0,59685.0,1.32808297]
[1726672762507,0.0017588,59686.0,59685.0,1.34208297]
[1726672763580,0.0017588,59686.0,59685.0,1.67717497]
[1726672763792,0.0017588,59686.0,59685.0,1.34208297]
[1726672764228,0.0017588,59686.0,59685.0,1.84022864]
[1726672765320,0.0017588,59686.0,59685.0,1.85250664]
[1726672765783,0.0017588,59686.0,59685.0,1.86650664]
[1726672766004,0.0017588,59686.0,59685.0,1.85250664]
[1726672766212,0.0017588,59686.0,59685.0,1.86650664]
[1726672766439,0.0017588,59686.0,59685.0,1.53141464]
[1726672766656,0.0017588,59686.0,59685.0,1.36836097]
[1726672766874,0.0017588,59686.0,59685.0,0.878008]
[1726672767084,0.0017588,59686.0,59685.0,0.502638]
[1726672767331,0.0017588,59686.0,59685.0,0.167546]
[1726672767993,0.0153295,59686.0,59685.0,0.502638]
[1726672768207,0.0017588,59686.0,59685.0,0.83773]
[1726672768469,0.0153295,59686.0,59685.0,1.32808297]
[1726672768677,0.0017588,59686.0,59685.0,1.32808297]
[1726672769539,0.0017588,59686.0,59685.0,1.34208297]
[1726672769971,0.0017588,59686.0,59685.0,1.32808297]
[1726672770202,0.0017588,59686.0,59685.0,1.33908297]
[1726672771100,0.0017588,59686.0,59685.0,1.32808297]
[1726672771319,0.0017588,59686.0,59685.0,1.66317497]
[1726672771524,0.0017588,59686.0,59685.0,1.67517497]
[1726672771946,0.0017588,59686.0,59685.0,1.84022864]
[1726672772364,0.0017588,59686.0,59685.0,1.83822864]
[1726672772992,0.0017588,59686.0,59685.0,1.82622864]
[1726672773831,0.0017588,59686.0,59685.0,1.83922864]
[1726672774031,0.0017588,59686.0,59685.0,1.82622864]
[1726672774252,0.0017588,59686.0,59685.0,1.82704864]
[1726672774471,0.0017588,59686.0,59685.0,1.34290297]
[1726672779927,0.0017588,59686.0,59685.0,1.187642]
[1726672780554,0.0017588,59686.0,59685.0,1.34290297]
[1726672783635,0.0017588,59686.0,59685.0,1.187642]
[1726672789205,0.0017588,59686.0,59685.0,1.34290297]
[1726672789825,0.0017588,59686.0,59685.0,1.67799497]
[1726672790042,0.0017588,59686.0,59685.0,1.34290297]
[1726672794161,0.0017588,59686.0,59685.0,1.187642]
[1726672796549,0.0017588,59686.0,59685.0,1.23766966]
[1726672797711,0.0017588,59686.0,59685.0,1.7780503]
[1726672797924,0.0017588,59686.0,59685.0,1.4429583]
[1726672798587,0.0017588,59686.0,59685.0,1.34290297]
[1726672800433,0.0017588,59686.0,59685.0,1.46797213]
[1726672800683,0.0017588,59686.0,59685.0,1.97104864]
[1726672800949,0.0016588,59686.0,59685.0,3.11197064]
[1726672801165,0.0016588,59686.0,59685.0,2.97370964]
[1726672801380,0.0016588,59686.0,59685.0,2.90170964]
[1726672801835,0.0016588,59686.0,59685.0,2.90370964]
[1726672802274,0.0016588,59686.0,59685.0,2.88970964]
[1726672803189,0.0016588,59686.0,59685.0,2.92670964]
[1726672803406,0.0015588,59686.0,59685.0,2.91270964]
[1726672803853,0.0015588,59686.0,59685.0,2.92670964]
[1726672804066,0.0015588,59686.0,59685.0,2.90370964]
[1726672804271,0.0015588,59686.0,59685.0,2.56861764]
[1726672804498,0.0015588,59686.0,59685.0,2.50861764]
[1726672804719,0.0015588,59686.0,59685.0,2.90370964]
[1726672805357,0.0015588,59686.0,59685.0,2.88970964]
[1726672806246,0.0015588,59686.0,59685.0,2.90370964]
[1726672806461,0.0014588,59686.0,59685.0,2.88970964]
[1726672806884,0.0014588,59686.0,59685.0,2.90370964]
[1726672807351,0.0014588,59686.0,59685.0,4.48043664]
[1726672807564,0.0014588,59686.0,59685.0,4.70253544]
[1726672807801,0.0014588,59686.0,59685.0,4.68853544]
[1726672807983,0.0014588,59686.0,59685.0,4.22080444]
[1726672808866,0.0014588,59686.0,59685.0,4.2208098]
[1726672809083,0.0014588,59686.0,59685.0,2.8471008]
[1726672809299,0.0014588,59686.0,59685.0,2.30450364]
[1726672809518,0.0014588,59686.0,59685.0,1.67178767]
[1726672809761,0.0014588,59686.0,59685.0,1.173642]
[1726672809993,0.0014588,59686.0,59685.0,1.29899919]
[1726672810635,0.0014588,59686.0,59685.0,1.29900371]
[1726672811074,0.0014588,59686.0,59685.0,1.95704864]
[1726672812156,0.0014588,59686.0,59685.0,1.97104864]
[1726672812591,0.0014588,59686.0,59685.0,1.287642]
[1726672813018,0.0014588,59686.0,59685.0,1.44290297]
[1726672813231,0.0014588,59686.0,59685.0,1.60595664]
[1726672813655,0.0014588,59686.0,59685.0,1.92704864]
[1726672814318,0.0014588,59686.0,59685.0,1.59195664]
[1726672814761,0.0014588,59686.0,59685.0,1.71735424]
[1726672815223,0.0933588,59686.0,59685.0,0.07607179]
[1726672815447,0.5959878,59686.0,59685.0,0.00082]
[1726672815665,0.27448622,59686.0,59685.0,0.00082]
[1726672815887,0.10694322,59686.0,59685.0,0.00082]
[1726672816378,1.10771189,59686.0,59685.0,0.00082]
[1726672816594,1.44279789,59686.0,59685.0,0.00082]
[1726672816805,0.0917,59679.0,59674.0,0.167576]
[1726672817016,0.167566,59678.0,59673.0,0.167578]
[1726672817232,0.01352862,59678.0,59674.0,0.167575]
[1726672817455,0.01352862,59678.0,59672.0,0.335164]
[1726672817672,0.01352862,59678.0,59674.0,0.167576]
[1726672817890,0.18109562,59678.0,59672.0,0.502744]
[1726672818107,0.167572,59676.0,59670.0,0.335996]
[1726672818325,0.335138,59677.0,59670.0,0.00082]
[1726672818326,0.167581,59673.0,59670.0,0.00082]
[1726672818555,0.259185,59671.0,59670.0,0.00082]
[1726672818764,0.594356,59671.0,59670.0,0.00082]
[1726672818989,0.60761699,59671.0,59670.0,0.00082]
[1726672820767,0.94278799,59671.0,59670.0,0.00082]
[1726672820987,1.44101266,59671.0,59670.0,0.00082]
[1726672821249,1.46401266,59671.0,59670.0,0.00082]
[1726672823510,0.60761699,59671.0,59670.0,0.00082]
[1726672824831,0.60861699,59671.0,59670.0,0.01182]
[1726672825749,0.10586099,59671.0,59670.0,0.01182]
[1726672827070,0.60861699,59671.0,59670.0,0.01182]
[1726672827504,0.94378799,59671.0,59670.0,0.01182]
[1726672828428,1.44201266,59671.0,59670.0,0.01182]
[1726672828927,1.46501266,59671.0,59670.0,0.01182]
[1726672830378,1.10684166,59671.0,59670.0,0.01182]
[1726672830663,0.27344599,59671.0,59670.0,0.01182]
[1726672830902,0.10586099,59671.0,59670.0,0.01182]
[1726672831177,0.18184599,59671.0,59670.0,0.01182]
[1726672831640,0.51701699,59671.0,59670.0,0.01182]
[1726672831857,0.18184599,59671.0,59670.0,0.01182]
[1726672832068,0.18782942,59671.0,59670.0,0.01182]
[1726672832476,0.85817142,59671.0,59670.0,0.01182]
[1726672833136,1.35639609,59671.0,59670.0,0.01182]
[1726672833357,1.45629609,59671.0,59670.0,0.01182]
[1726672834024,1.12112509,59671.0,59670.0,0.01182]
[1726672834686,0.62290042,59671.0,59670.0,0.01182]
[1726672834901,0.28772942,59671.0,59670.0,0.01182]
[1726672835260,0.02024442,59671.0,59670.0,0.01182]
[1726672835475,0.02024442,59671.0,59670.0,0.179408]
[1726672835915,0.001,59671.0,59670.0,0.01182]
[1726672836128,0.02024594,59671.0,59670.0,0.01182]
[1726672836780,0.18783094,59671.0,59670.0,0.01182]
[1726672837018,0.52300194,59671.0,59670.0,0.01182]
[1726672837282,1.28434394,59671.0,59670.0,0.01182]
[1726672837500,1.44739761,59671.0,59670.0,0.01182]
[1726672844572,0.61400194,59671.0,59670.0,0.01182]
[1726672844817,0.02024594,59671.0,59670.0,0.01182]
[1726672845273,0.02024594,59671.0,59670.0,0.179408]
[1726672845696,0.02024594,59671.0,59670.0,0.514584]
[1726672845915,0.001,59671.0,59670.0,0.514584]
[1726672846173,0.02025023,59671.0,59670.0,0.514584]
[1726672846399,0.001,59671.0,59670.0,0.514584]
[1726672846616,0.02025023,59671.0,59670.0,0.84976]
[1726672846836,0.001,59671.0,59670.0,0.84976]
[1726672849463,0.167566,59678.0,59674.0,0.167575]
[1726672849675,0.427306,59683.0,59672.0,0.335161]
[1726672849676,0.18690541,59677.0,59672.0,0.502741]
[1726672849909,0.001,59671.0,59670.0,0.181408]
[1726672850133,0.02034477,59671.0,59670.0,0.516584]
[1726672850593,0.01934477,59671.0,59670.0,0.503584]
[1726672851048,0.502722,59675.0,59674.0,0.005]
[1726672851269,0.167585,59671.0,59670.0,0.00082]
[1726672851503,0.76130967,59671.0,59670.0,0.00082]
[1726672851757,1.09648067,59671.0,59670.0,0.00082]
[1726672854704,0.76130967,59671.0,59670.0,0.00082]
[1726672855129,0.335156,59674.0,59670.0,0.00082]
[1726672855351,0.16305367,59675.0,59670.0,0.168407]
[1726672855575,0.167578,59674.0,59671.0,0.167585]
[1726672855814,0.16758,59673.0,59670.0,0.168407]